[Event "SWE-ch -50 2018"]
[Site "Ronneby"]
[Date "2018.07.08"]
[Round "9"]
[White "Gemzell, Ted"]
[Black "Gamback, Bjorn"]
[Result "1/2-1/2"]
[ECO "A49"]
[WhiteElo "1990"]
[BlackElo "2108"]
[Annotator "NA"]
[PlyCount "38"]
[EventDate "2018.06.30"]
[EventType "tourn"]
[EventCountry "SWE"]
[SourceTitle "playchess.com"]
[Source "ChessBase"]
[SourceQuality "1"]
[TimeControl "40/5400+30:1800+30"]

1. d4 {[%emt 0:00:50]} Nf6 {[%emt 0:02:40]} 2. Nf3 {[%emt 0:01:54]} g6 {[%emt 0:00:53]} 3. g3 {[%emt 0:05:01]} Bg7 {[%emt 0:00:22]} 4. Bg2 {[%emt 0:00:08]} O-O {[%emt 0:00:26]} 5. O-O {[%emt 0:00:47]} d6 {[%emt 0:00:09]} 6. b3 {[%emt 0:02:23]} c6 {[%emt 0:01:59]} 7. Bb2 {[%emt 0:02:07]} Nbd7 {[%emt 0:00:21]} 8. Nbd2 {[%emt 0:01:08]} Qc7 {[%emt 0:02:38]} 9. e4 {[%emt 0:05:08] LiveBook: 35 Games} Rd8 {[%emt 0:03:08]} 10. Qe2 {[%emt 0:01:24]} e5 {[%emt 0:01:22]} 11. dxe5 $11 {[%emt 0:01:02]} dxe5 {[%emt 0:00:40]} 12. Rfd1 {[%emt 0:04:02]} Ne8 {[%emt 0:03:29]} 13. Nc4 {[%emt 0:17:23]} b5 {[%emt 0:12:58]} 14. Ne3 {[%emt 0:03:08]} Bb7 {[%emt 0:04:37]} 15. c4 {[%emt 0:03:17]} a6 {[%emt 0:11:07]} 16. Rac1 {[%emt 0:02:40]} Nb6 {[%emt 0:13:25]} 17. c5 {[%emt 0:07:38]} Rxd1+ {[%emt 0:00:45]} 18. Rxd1 {[%emt 0:00:57]} Nd7 {[%emt 0:00:16]} 19. b4 {[%emt 0:02:35]} a5 {[%emt 0:00:43]} 1/2-1/2